﻿Department,Entity,Date,ExpenseType,ExpenseArea,Supplier,PaymentNumber,InvoiceDistributionAmount,InvoiceDescription,SupplierPostCode,ExpenditureType
FOOD STANDARDS AGENCY - Westminster,FOOD STANDARDS AGENCY - Westminster,2022-02-01,EXP - PURCHASE OF GOODS/SERVICES- OTHER - PROGRAMME EXP - LOCAL AUTHORITY GRANTS,ANIMAL FEED,TRADING STANDARDS INSTITUTE (GRANTS),1011717934,58100,Feed Off. Costs 2021/22 Prog delivery (FH@PP). Feed Official Controls funding 2021/22. To deliver a programme of Official Controls (Food Hygiene at Primary Production) in 2021/22. (FS211003),SS15 6TH,Admin
FOOD STANDARDS AGENCY - Westminster,FOOD STANDARDS AGENCY - Westminster,2022-02-01,EXP - PURCHASE OF GOODS/SERVICES- OTHER - PROGRAMME EXP - LOCAL AUTHORITY GRANTS,ANIMAL FEED,TRADING STANDARDS INSTITUTE (GRANTS),1011717934,290223,Feed Off. Costs 2021/22 Prog delivery (inland/ports). Feed Official Controls funding 2021/22. To deliver a programme of Official Controls (inland inspections/sampling & ports work) in 2021/22. (FS225002),SS15 6TH,Admin
FOOD STANDARDS AGENCY - Westminster,FOOD STANDARDS AGENCY - Westminster,2022-02-01,EXP - PURCHASE OF GOODS/SERVICES- OTHER - PROGRAMME EXP - LOCAL AUTHORITY GRANTS,ANIMAL FEED,TRADING STANDARDS INSTITUTE (GRANTS),1011717934,30482,Feed Off. Costs 2021/22 NTS/TSI fees. Feed Official Controls funding 2021/22: Programme Management Costs (TSI/CTSI) (FS616020),SS15 6TH,Admin
FOOD STANDARDS AGENCY - Westminster,FOOD STANDARDS AGENCY - Westminster,2022-02-01,EXP - PURCHASE OF GOODS/SERVICES - OTHER ICT COSTS - COMPUTER HARDWARE,IT SERVICE DELIVERY,COREAZURE LTD,1011717948,97591,FS430798 Microsoft Azure CSP Subscriptions and Licenses (BC798),EC1N 8TS,Admin
FOOD STANDARDS AGENCY - Westminster,FOOD STANDARDS AGENCY - Westminster,2022-02-01,EXP - PURCHASE OF GOODS/SERVICES - OTHER ICT COSTS - COMPUTER HARDWARE,IT SERVICE DELIVERY,COREAZURE LTD,1011717948,19518,UK VAT - UK VAT,EC1N 8TS,Admin
FOOD STANDARDS AGENCY - Westminster,FOOD STANDARDS AGENCY - Westminster,2022-02-01,EXP - PURCHASE OF GOODS/SERVICES - OTHER - PROGRAMME EXPENDITURE,SCIENTIFIC METHODS AND LABORATORY POLICY,HAMPSHIRE SCIENTIFIC SERVICE HAMPSHIRE COUNTY COUNCIL,1011717930,-51060,Covid-19 surveillance sampling programme,SO23 8UB,Admin
FOOD STANDARDS AGENCY - Westminster,FOOD STANDARDS AGENCY - Westminster,2022-02-01,EXP - PURCHASE OF GOODS/SERVICES - OTHER - PROGRAMME EXPENDITURE,SCIENTIFIC METHODS AND LABORATORY POLICY,HAMPSHIRE SCIENTIFIC SERVICE HAMPSHIRE COUNTY COUNCIL,1011717930,51060,Covid-19 surveillance sampling programme,SO23 8UB,Admin
FOOD STANDARDS AGENCY - Westminster,FOOD STANDARDS AGENCY - Westminster,2022-02-01,EXP - PURCHASE OF GOODS/SERVICES - OTHER - PROGRAMME EXPENDITURE,"SCIENCE STRATEGY, CAPABILITY AND RESEARCH",HAMPSHIRE SCIENTIFIC SERVICE HAMPSHIRE COUNTY COUNCIL,1011717930,51060,Retail food surveillance programme (FS430587B) - Redacted under Section 40 FOI Act,SO23 8UB,Admin
FOOD STANDARDS AGENCY - Westminster,FOOD STANDARDS AGENCY - Westminster,2022-02-01,EXP - PURCHASE OF GOODS/SERVICES - OTHER - PROGRAMME EXPENDITURE,RISK ASSESSMENT - RESEARCH AND DEVELOPMENT,BASIS RESEARCH LTD,1011717946,23791,Social research looking at food business and consumer attitudes and behaviours towards Precautionary Allergen Labelling. Redacted under Section 40 FOI Act FS900121,WIT 1PH,Admin
FOOD STANDARDS AGENCY - Westminster,FOOD STANDARDS AGENCY - Westminster,2022-02-02,EXP - AMORTISATION - INTANGIBLE ASSETS,"DATA, INFORMATION, GOVERNANCE AND SECURITY",EGRESS SOFTWARE TECHNOLOGIES LTD,1011717955,134400,FS910126 Prevent and Protect Intelligent Email Security Software (27.09.21 to 26.09.23) (BC920),EC1Y 8AF,Capital
FOOD STANDARDS AGENCY - Westminster,FOOD STANDARDS AGENCY - Westminster,2022-02-02,EXP - AMORTISATION - INTANGIBLE ASSETS,"DATA, INFORMATION, GOVERNANCE AND SECURITY",EGRESS SOFTWARE TECHNOLOGIES LTD,1011717955,26880,UK VAT - UK VAT,EC1Y 8AF,Capital
FOOD STANDARDS AGENCY - Westminster,FOOD STANDARDS AGENCY - Westminster,2022-02-02,EXP - PURCHASE OF GOODS/SERVICES - OTHER ICT COSTS - COMPUTER HARDWARE,IT SERVICE DELIVERY,METHODS BUSINESS AND DIGITAL TECHNOLOGY LTD,1011717963,33133,FS430635 Cloud Infrastructure Management (BC695),EC1A 4EN,Admin
FOOD STANDARDS AGENCY - Westminster,FOOD STANDARDS AGENCY - Westminster,2022-02-02,EXP - PURCHASE OF GOODS/SERVICES - OTHER ICT COSTS - COMPUTER HARDWARE,IT SERVICE DELIVERY,METHODS BUSINESS AND DIGITAL TECHNOLOGY LTD,1011717963,6627,UK VAT - UK VAT,EC1A 4EN,Admin
FOOD STANDARDS AGENCY - Westminster,FOOD STANDARDS AGENCY - Westminster,2022-02-03,EXP - PURCHASE OF GOODS/SERVICES - OTHER - PROGRAMME EXPENDITURE,REGULATORY DELIVERY,C E F A S,2011700190,10747,Phytoplankton analysis for shellfish official controls 2021-22,NR33 0HT,Admin
FOOD STANDARDS AGENCY - Westminster,FOOD STANDARDS AGENCY - Westminster,2022-02-03,EXP - PURCHASE OF GOODS/SERVICES - OTHER - PROGRAMME EXPENDITURE,REGULATORY DELIVERY,C E F A S,2011700190,36961,Biotoxin official controls - Shellfish,NR33 0HT,Admin
FOOD STANDARDS AGENCY - Westminster,FOOD STANDARDS AGENCY - Westminster,2022-02-03,EXP - PURCHASE OF GOODS/SERVICES - OTHER ICT COSTS - COMPUTER SOFTWARE,PEOPLE & ORGANISATIONAL CHANGE,STAFF CIRCLE LTD,1011717967,29790,Performance and Talent Management software Redacted under Section 40 FOI Act. FS430943,LE1 1RE,Admin
FOOD STANDARDS AGENCY - Westminster,FOOD STANDARDS AGENCY - Westminster,2022-02-03,EXP - PURCHASE OF GOODS/SERVICES - OTHER ICT COSTS - COMPUTER SOFTWARE,PEOPLE & ORGANISATIONAL CHANGE,STAFF CIRCLE LTD,1011717967,5958,UK VAT - UK VAT,LE1 1RE,Admin
FOOD STANDARDS AGENCY - Westminster,FOOD STANDARDS AGENCY - Westminster,2022-02-03,EXP - PURCHASE OF GOODS/SERVICES - PERSONNEL RELATED - WELFARE SERVICES,PEOPLE & ORGANISATIONAL CHANGE,EVOTIX LTD,1011717966,29490,Evotix Assure software service 21/12/21 to 20/12/23,G75 0QF,Admin
FOOD STANDARDS AGENCY - Westminster,FOOD STANDARDS AGENCY - Westminster,2022-02-03,EXP - PURCHASE OF GOODS/SERVICES - PERSONNEL RELATED - WELFARE SERVICES,PEOPLE & ORGANISATIONAL CHANGE,EVOTIX LTD,1011717966,5898,UK VAT - UK VAT,G75 0QF,Admin
FOOD STANDARDS AGENCY - Westminster,FOOD STANDARDS AGENCY - Westminster,2022-02-03,EXP - PURCHASE OF GOODS/SERVICES - OTHER - PROGRAMME EXPENDITURE,RISK ASSESSMENT - RESEARCH AND DEVELOPMENT,UNIVERSITY OF SOUTHAMPTON,1011717980,26605,FS430621 Report for Survival of SARS-CoV-2 on food surfaces and food packaging materials,SO17 1BJ,Admin
FOOD STANDARDS AGENCY - Westminster,FOOD STANDARDS AGENCY - Westminster,2022-02-04,EXP - PURCHASE OF GOODS/SERVICES - OTHER ICT COSTS - COMPUTER HARDWARE,IT SERVICE DELIVERY,METHODS BUSINESS AND DIGITAL TECHNOLOGY LTD,1011717988,30070,FS430634 Cloud Service Management (CSM) (BC695),EC1A 4EN,Admin
FOOD STANDARDS AGENCY - Westminster,FOOD STANDARDS AGENCY - Westminster,2022-02-04,EXP - PURCHASE OF GOODS/SERVICES - OTHER ICT COSTS - COMPUTER HARDWARE,IT SERVICE DELIVERY,METHODS BUSINESS AND DIGITAL TECHNOLOGY LTD,1011717988,30070,FS430634 Cloud Service Management (CSM) (BC695),EC1A 4EN,Admin
FOOD STANDARDS AGENCY - Westminster,FOOD STANDARDS AGENCY - Westminster,2022-02-04,EXP - PURCHASE OF GOODS/SERVICES - OTHER ICT COSTS - COMPUTER HARDWARE,IT SERVICE DELIVERY,METHODS BUSINESS AND DIGITAL TECHNOLOGY LTD,1011717988,30070,FS430634 Cloud Service Management (CSM) (BC695),EC1A 4EN,Admin
FOOD STANDARDS AGENCY - Westminster,FOOD STANDARDS AGENCY - Westminster,2022-02-04,EXP - PURCHASE OF GOODS/SERVICES - OTHER ICT COSTS - COMPUTER HARDWARE,IT SERVICE DELIVERY,METHODS BUSINESS AND DIGITAL TECHNOLOGY LTD,1011717988,30070,FS430634 Cloud Service Management (CSM) (BC695),EC1A 4EN,Admin
FOOD STANDARDS AGENCY - Westminster,FOOD STANDARDS AGENCY - Westminster,2022-02-04,EXP - PURCHASE OF GOODS/SERVICES - OTHER ICT COSTS - COMPUTER HARDWARE,IT SERVICE DELIVERY,METHODS BUSINESS AND DIGITAL TECHNOLOGY LTD,1011717988,30070,FS430634 Cloud Service Management (CSM) (BC695),EC1A 4EN,Admin
FOOD STANDARDS AGENCY - Westminster,FOOD STANDARDS AGENCY - Westminster,2022-02-04,EXP - PURCHASE OF GOODS/SERVICES - OTHER ICT COSTS - COMPUTER HARDWARE,IT SERVICE DELIVERY,METHODS BUSINESS AND DIGITAL TECHNOLOGY LTD,1011717988,39825,FS430634 Cloud Service Management On-Boarding (BC695),EC1A 4EN,Admin
FOOD STANDARDS AGENCY - Westminster,FOOD STANDARDS AGENCY - Westminster,2022-02-04,EXP - PURCHASE OF GOODS/SERVICES - OTHER ICT COSTS - COMPUTER HARDWARE,IT SERVICE DELIVERY,METHODS BUSINESS AND DIGITAL TECHNOLOGY LTD,1011717988,6014,UK VAT - UK VAT,EC1A 4EN,Admin
FOOD STANDARDS AGENCY - Westminster,FOOD STANDARDS AGENCY - Westminster,2022-02-04,EXP - PURCHASE OF GOODS/SERVICES - OTHER ICT COSTS - COMPUTER HARDWARE,IT SERVICE DELIVERY,METHODS BUSINESS AND DIGITAL TECHNOLOGY LTD,1011717988,6014,UK VAT - UK VAT,EC1A 4EN,Admin
FOOD STANDARDS AGENCY - Westminster,FOOD STANDARDS AGENCY - Westminster,2022-02-04,EXP - PURCHASE OF GOODS/SERVICES - OTHER ICT COSTS - COMPUTER HARDWARE,IT SERVICE DELIVERY,METHODS BUSINESS AND DIGITAL TECHNOLOGY LTD,1011717988,6014,UK VAT - UK VAT,EC1A 4EN,Admin
FOOD STANDARDS AGENCY - Westminster,FOOD STANDARDS AGENCY - Westminster,2022-02-04,EXP - PURCHASE OF GOODS/SERVICES - OTHER ICT COSTS - COMPUTER HARDWARE,IT SERVICE DELIVERY,METHODS BUSINESS AND DIGITAL TECHNOLOGY LTD,1011717988,6014,UK VAT - UK VAT,EC1A 4EN,Admin
FOOD STANDARDS AGENCY - Westminster,FOOD STANDARDS AGENCY - Westminster,2022-02-04,EXP - PURCHASE OF GOODS/SERVICES - OTHER ICT COSTS - COMPUTER HARDWARE,IT SERVICE DELIVERY,METHODS BUSINESS AND DIGITAL TECHNOLOGY LTD,1011717988,6014,UK VAT - UK VAT,EC1A 4EN,Admin
FOOD STANDARDS AGENCY - Westminster,FOOD STANDARDS AGENCY - Westminster,2022-02-04,EXP - PURCHASE OF GOODS/SERVICES - OTHER ICT COSTS - COMPUTER HARDWARE,IT SERVICE DELIVERY,METHODS BUSINESS AND DIGITAL TECHNOLOGY LTD,1011717988,7965,UK VAT - UK VAT,EC1A 4EN,Admin
FOOD STANDARDS AGENCY - Westminster,FOOD STANDARDS AGENCY - Westminster,2022-02-04,EXP - PURCHASE OF GOODS/SERVICES - OTHER - PROGRAMME EXPENDITURE,OPERATIONAL ASSURANCE,DELOITTE LLP,1011717985,87663,FS430950 - Official Veterinarian Resourcing Model (Implementation Planning) - Provide professional services in support of the OTP OV resourcing  REQ Redacted under Section 40 FOI Act,MK9 1FD,Admin
FOOD STANDARDS AGENCY - Westminster,FOOD STANDARDS AGENCY - Westminster,2022-02-04,EXP - PURCHASE OF GOODS/SERVICES - OTHER - PROGRAMME EXPENDITURE,OPERATIONAL ASSURANCE,DELOITTE LLP,1011717985,17533,UK VAT - UK VAT,MK9 1FD,Admin
FOOD STANDARDS AGENCY - Westminster,FOOD STANDARDS AGENCY - Westminster,2022-02-04,EXP - PURCHASE OF GOODS/SERVICES - OTHER - PROGRAMME EXPENDITURE,FOOD HYPERSENSITIVITIES,I10 LTD,1011717983,35644,Delivery of FARRM Alpha Phase 2021/22 Redacted under Section 40 FOI Act FS430716,NG31 6JL,Admin
FOOD STANDARDS AGENCY - Westminster,FOOD STANDARDS AGENCY - Westminster,2022-02-04,EXP - PURCHASE OF GOODS/SERVICES - TELECOMS - MOBILE PHONES,IT SERVICE DELIVERY,EE LTD,1011717991,5,EE Monthly Charges (additional) - December 21,AL10 9BW,Admin
FOOD STANDARDS AGENCY - Westminster,FOOD STANDARDS AGENCY - Westminster,2022-02-04,EXP - PURCHASE OF GOODS/SERVICES - TELECOMS - MOBILE PHONES,IT SERVICE DELIVERY,EE LTD,1011717991,1,UK VAT - UK VAT,AL10 9BW,Admin
FOOD STANDARDS AGENCY - Westminster,FOOD STANDARDS AGENCY - Westminster,2022-02-04,EXP - PURCHASE OF GOODS/SERVICES - TELECOMS - MOBILE PHONES,IT SERVICE DELIVERY,EE LTD,1011717991,23634,EE Monthly Charges - January 22,AL10 9BW,Admin
FOOD STANDARDS AGENCY - Westminster,FOOD STANDARDS AGENCY - Westminster,2022-02-04,EXP - PURCHASE OF GOODS/SERVICES - TELECOMS - MOBILE PHONES,IT SERVICE DELIVERY,EE LTD,1011717991,4724,UK VAT - UK VAT,AL10 9BW,Admin
FOOD STANDARDS AGENCY - Westminster,FOOD STANDARDS AGENCY - Westminster,2022-02-07,EXP - PURCHASE OF GOODS/SERVICES - OTHER - PROGRAMME EXPENDITURE,REGULATORY DELIVERY,C E F A S,2011700191,-22539,Shellfish Classification Management,NR33 0HT,Admin
FOOD STANDARDS AGENCY - Westminster,FOOD STANDARDS AGENCY - Westminster,2022-02-07,EXP - PURCHASE OF GOODS/SERVICES - OTHER - PROGRAMME EXPENDITURE,REGULATORY DELIVERY,C E F A S,2011700191,22539,Shellfish Classification Management,NR33 0HT,Admin
FOOD STANDARDS AGENCY - Westminster,FOOD STANDARDS AGENCY - Westminster,2022-02-07,EXP - PURCHASE OF GOODS/SERVICES - OTHER - PROGRAMME EXPENDITURE,REGULATORY DELIVERY,C E F A S,2011700191,22539,Classification management - Shellfish official controls,NR33 0HT,Admin
FOOD STANDARDS AGENCY - Westminster,FOOD STANDARDS AGENCY - Westminster,2022-02-07,EXP - PURCHASE OF GOODS/SERVICES - OTHER - PROGRAMME EXPENDITURE,REGULATORY DELIVERY,C E F A S,2011700191,22539,Classification management - Shellfish official controls,NR33 0HT,Admin
FOOD STANDARDS AGENCY - Westminster,FOOD STANDARDS AGENCY - Westminster,2022-02-07,EXP - PURCHASE OF GOODS/SERVICES - OTHER - PROGRAMME EXPENDITURE,"NOVEL FOODS, GM, RADIOLOGICAL AND FEED ADDITIVES",C E F A S,2011700191,6150,Production of Radioactivity In Food and the Environment (RIFE 26) report and Radioactivity In Food and the Environment (RIFE 25) anniversary paper - Redacted under Section 40 FOI Act,NR33 0HT,Admin
FOOD STANDARDS AGENCY - Westminster,FOOD STANDARDS AGENCY - Westminster,2022-02-07,EXP - PURCHASE OF GOODS/SERVICES - OTHER - PROGRAMME EXPENDITURE,"NOVEL FOODS, GM, RADIOLOGICAL AND FEED ADDITIVES",C E F A S,2011700191,179373,Production of Radioactivity In Food and the Environment (RIFE 26) report and Radioactivity In Food and the Environment (RIFE 25) anniversary paper - Redacted under Section 40 FOI Act,NR33 0HT,Admin
FOOD STANDARDS AGENCY - Westminster,FOOD STANDARDS AGENCY - Westminster,2022-02-07,EXP - PURCHASE OF GOODS/SERVICES - OTHER PROFESSIONAL SERVICES,OPERATIONAL DELIVERY,ARCO UK LTD,1011718020,-205,PPE Bulk purchase order funds 11770002606  20/21,HU1 2SJ,Admin
FOOD STANDARDS AGENCY - Westminster,FOOD STANDARDS AGENCY - Westminster,2022-02-07,EXP - PURCHASE OF GOODS/SERVICES - OTHER PROFESSIONAL SERVICES,OPERATIONAL DELIVERY,ARCO UK LTD,1011718020,30510,PPE Bulk purchase order funds 11770002606  20/21,HU1 2SJ,Admin
FOOD STANDARDS AGENCY - Westminster,FOOD STANDARDS AGENCY - Westminster,2022-02-07,EXP - PURCHASE OF GOODS/SERVICES - OTHER - PROGRAMME EXPENDITURE,ANALYTICS UNIT,IFF RESEARCH LTD,1011718008,30000,FS430602 - FBO Tracker and Audit update,N1  6DD,Admin
FOOD STANDARDS AGENCY - Westminster,FOOD STANDARDS AGENCY - Westminster,2022-02-07,EXP - PURCHASE OF GOODS/SERVICES - OTHER - PROGRAMME EXPENDITURE,"SCIENCE STRATEGY, CAPABILITY AND RESEARCH",UNIVERSITY OF EXETER,1011718004,30000,"FS900100 22 months FSA research fellowship (FS900100): Research Fellow in Health Economist Estimating the Burden of Chemical Contaminants in Food, in conjunction with University of Exeter (UoE).  Req Nick Daniels",EX4 4QJ,Admin
FOOD STANDARDS AGENCY - Westminster,FOOD STANDARDS AGENCY - Westminster,2022-02-08,EXP - PURCHASE OF GOODS/SERVICES - OTHER - CARRIAGE OF SAMPLES,OPERATIONAL DELIVERY,TOPSPEED COURIERS LIMITED,1011718034,1286,Topspeed Couriers - 2 Year Contract Extension - RCDM samples,WA16 8XN,Admin
FOOD STANDARDS AGENCY - Westminster,FOOD STANDARDS AGENCY - Westminster,2022-02-08,EXP - PURCHASE OF GOODS/SERVICES - OTHER - ANALYSIS OF SAMPLES (NON TRICHINELLA),OPERATIONAL DELIVERY,TOPSPEED COURIERS LIMITED,1011718034,144,Topspeed - TB DNA collections,WA16 8XN,Admin
FOOD STANDARDS AGENCY - Westminster,FOOD STANDARDS AGENCY - Westminster,2022-02-08,EXP - PURCHASE OF GOODS/SERVICES - OTHER - CARRIAGE OF SAMPLES,OPERATIONAL DELIVERY,TOPSPEED COURIERS LIMITED,1011718034,10753,Topspeed Couriers - Collection of Trichinella samples - Delivery of Official Controls,WA16 8XN,Admin
FOOD STANDARDS AGENCY - Westminster,FOOD STANDARDS AGENCY - Westminster,2022-02-08,EXP - PURCHASE OF GOODS/SERVICES - OTHER - CARRIAGE OF SAMPLES,OPERATIONAL DELIVERY,TOPSPEED COURIERS LIMITED,1011718034,450,Topspeed Couriers - Return of RIM boxes to APHA sites,WA16 8XN,Admin
FOOD STANDARDS AGENCY - Westminster,FOOD STANDARDS AGENCY - Westminster,2022-02-08,EXP - PURCHASE OF GOODS/SERVICES - OTHER - CARRIAGE OF SAMPLES,OPERATIONAL DELIVERY,TOPSPEED COURIERS LIMITED,1011718034,15691,Topspeed Couriers - Collection of RIM samples - 2 year contract extension,WA16 8XN,Admin
FOOD STANDARDS AGENCY - Westminster,FOOD STANDARDS AGENCY - Westminster,2022-02-08,EXP - PURCHASE OF GOODS/SERVICES - OTHER - CARRIAGE OF SAMPLES,OPERATIONAL DELIVERY,TOPSPEED COURIERS LIMITED,1011718034,5217,Topspeed Couriers - 2 Year Contract Extension - TB samples,WA16 8XN,Admin
FOOD STANDARDS AGENCY - Westminster,FOOD STANDARDS AGENCY - Westminster,2022-02-08,EXP - PURCHASE OF GOODS/SERVICES - OTHER ICT COSTS,PEOPLE & ORGANISATIONAL CHANGE,LEARNING POOL LTD,1011718026,22300,"Continued Access to the Total LMSfor 1,500 users 21/01/22 - 20/02/23 (addition to 11770005553)",BT48 7EL,Admin
FOOD STANDARDS AGENCY - Westminster,FOOD STANDARDS AGENCY - Westminster,2022-02-08,EXP - PURCHASE OF GOODS/SERVICES - OTHER ICT COSTS,PEOPLE & ORGANISATIONAL CHANGE,LEARNING POOL LTD,1011718026,4460,UK VAT - UK VAT,BT48 7EL,Admin
FOOD STANDARDS AGENCY - Westminster,FOOD STANDARDS AGENCY - Westminster,2022-02-09,EXP - AMORTISATION - INTANGIBLE ASSETS,IT SERVICE DELIVERY,CCS MEDIA LTD,1011718039,180,NFC136 Hardware Aggregation Tech Refresh Quote 6020164 (BC859),S40 2EX,Capital
FOOD STANDARDS AGENCY - Westminster,FOOD STANDARDS AGENCY - Westminster,2022-02-09,EXP - AMORTISATION - INTANGIBLE ASSETS,IT SERVICE DELIVERY,CCS MEDIA LTD,1011718039,500,NFC136 Hardware Aggregation Tech Refresh Quote 6020164 (BC859),S40 2EX,Capital
FOOD STANDARDS AGENCY - Westminster,FOOD STANDARDS AGENCY - Westminster,2022-02-09,EXP - AMORTISATION - INTANGIBLE ASSETS,IT SERVICE DELIVERY,CCS MEDIA LTD,1011718039,23075,NFC136 Hardware Aggregation Tech Refresh Quote 6020164 (BC859),S40 2EX,Capital
FOOD STANDARDS AGENCY - Westminster,FOOD STANDARDS AGENCY - Westminster,2022-02-09,EXP - AMORTISATION - INTANGIBLE ASSETS,IT SERVICE DELIVERY,CCS MEDIA LTD,1011718039,26158,NFC136 Hardware Aggregation Tech Refresh Quote 6020164 (BC859),S40 2EX,Capital
FOOD STANDARDS AGENCY - Westminster,FOOD STANDARDS AGENCY - Westminster,2022-02-09,EXP - AMORTISATION - INTANGIBLE ASSETS,IT SERVICE DELIVERY,CCS MEDIA LTD,1011718039,26270,NFC136 Hardware Aggregation Tech Refresh Quote 6020164 (BC859),S40 2EX,Capital
FOOD STANDARDS AGENCY - Westminster,FOOD STANDARDS AGENCY - Westminster,2022-02-09,EXP - AMORTISATION - INTANGIBLE ASSETS,IT SERVICE DELIVERY,CCS MEDIA LTD,1011718039,323500,NFC136 Hardware Aggregation Tech Refresh Quote 6020164 (BC859),S40 2EX,Capital
FOOD STANDARDS AGENCY - Westminster,FOOD STANDARDS AGENCY - Westminster,2022-02-09,EXP - AMORTISATION - INTANGIBLE ASSETS,IT SERVICE DELIVERY,CCS MEDIA LTD,1011718039,36,UK VAT - UK VAT,S40 2EX,Capital
FOOD STANDARDS AGENCY - Westminster,FOOD STANDARDS AGENCY - Westminster,2022-02-09,EXP - AMORTISATION - INTANGIBLE ASSETS,IT SERVICE DELIVERY,CCS MEDIA LTD,1011718039,100,UK VAT - UK VAT,S40 2EX,Capital
FOOD STANDARDS AGENCY - Westminster,FOOD STANDARDS AGENCY - Westminster,2022-02-09,EXP - AMORTISATION - INTANGIBLE ASSETS,IT SERVICE DELIVERY,CCS MEDIA LTD,1011718039,4615,UK VAT - UK VAT,S40 2EX,Capital
FOOD STANDARDS AGENCY - Westminster,FOOD STANDARDS AGENCY - Westminster,2022-02-09,EXP - AMORTISATION - INTANGIBLE ASSETS,IT SERVICE DELIVERY,CCS MEDIA LTD,1011718039,5232,UK VAT - UK VAT,S40 2EX,Capital
FOOD STANDARDS AGENCY - Westminster,FOOD STANDARDS AGENCY - Westminster,2022-02-09,EXP - AMORTISATION - INTANGIBLE ASSETS,IT SERVICE DELIVERY,CCS MEDIA LTD,1011718039,5254,UK VAT - UK VAT,S40 2EX,Capital
FOOD STANDARDS AGENCY - Westminster,FOOD STANDARDS AGENCY - Westminster,2022-02-09,EXP - AMORTISATION - INTANGIBLE ASSETS,IT SERVICE DELIVERY,CCS MEDIA LTD,1011718039,64700,UK VAT - UK VAT,S40 2EX,Capital
FOOD STANDARDS AGENCY - Westminster,FOOD STANDARDS AGENCY - Westminster,2022-02-10,EXP - PURCHASE OF GOODS/SERVICES - OTHER - PROGRAMME EXPENDITURE,REGULATORY DELIVERY,MSQ PARTNERS GROUP LTD,1011718057,9500,FS430756 Redacted under Section 40 FOI Act Registration - Raise Awareness Campaign - BC000756 - further work,WC2E 7AU,Admin
FOOD STANDARDS AGENCY - Westminster,FOOD STANDARDS AGENCY - Westminster,2022-02-10,EXP - PURCHASE OF GOODS/SERVICES - OTHER - PROGRAMME EXPENDITURE,REGULATORY DELIVERY,MSQ PARTNERS GROUP LTD,1011718057,36225,FS430756 Redacted under Section 40 FOI Act - Raise Awareness Campaign - BC000756 - further work,WC2E 7AU,Admin
FOOD STANDARDS AGENCY - Westminster,FOOD STANDARDS AGENCY - Westminster,2022-02-10,EXP - AMORTISATION - INTANGIBLE ASSETS,OPERATIONS TRANSFORMATION PROGRAMME,I10 LTD,1011718055,28256,FSA728 - WP033 Ernie Interim (BC734),NG31 6JL,Capital
FOOD STANDARDS AGENCY - Westminster,FOOD STANDARDS AGENCY - Westminster,2022-02-10,EXP - AMORTISATION - INTANGIBLE ASSETS,OPERATIONS TRANSFORMATION PROGRAMME,I10 LTD,1011718055,5651,UK VAT - UK VAT,NG31 6JL,Capital
FOOD STANDARDS AGENCY - Westminster,FOOD STANDARDS AGENCY - Westminster,2022-02-10,EXP - PURCHASE OF GOODS/SERVICES - OTHER - PROGRAMME EXPENDITURE,RISK ASSESSMENT - RESEARCH AND DEVELOPMENT,C E F A S,2011700192,26717,Critical review of microbiological colonisation of nano- and microplastics and their significance to the food chain,NR33 0HT,Admin
FOOD STANDARDS AGENCY - Westminster,FOOD STANDARDS AGENCY - Westminster,2022-02-10,EXP - PURCHASE OF GOODS/SERVICES - OTHER - PROGRAMME EXPENDITURE,RISK ASSESSMENT - RESEARCH AND DEVELOPMENT,C E F A S,2011700192,5343,UK VAT - UK VAT,NR33 0HT,Admin
FOOD STANDARDS AGENCY - Westminster,FOOD STANDARDS AGENCY - Westminster,2022-02-10,EXP - AMORTISATION - INTANGIBLE ASSETS,IT SERVICE DELIVERY,LITTLE FISH UK LTD,1011718058,-1270,Tech Refresh Rollout (BC699),NG1 1LS,Capital
FOOD STANDARDS AGENCY - Westminster,FOOD STANDARDS AGENCY - Westminster,2022-02-10,EXP - AMORTISATION - INTANGIBLE ASSETS,IT SERVICE DELIVERY,LITTLE FISH UK LTD,1011718058,23579,Tech Refresh Rollout (BC699),NG1 1LS,Capital
FOOD STANDARDS AGENCY - Westminster,FOOD STANDARDS AGENCY - Westminster,2022-02-10,EXP - AMORTISATION - INTANGIBLE ASSETS,IT SERVICE DELIVERY,LITTLE FISH UK LTD,1011718058,-254,UK VAT - UK VAT,NG1 1LS,Capital
FOOD STANDARDS AGENCY - Westminster,FOOD STANDARDS AGENCY - Westminster,2022-02-10,EXP - AMORTISATION - INTANGIBLE ASSETS,IT SERVICE DELIVERY,LITTLE FISH UK LTD,1011718058,4716,UK VAT - UK VAT,NG1 1LS,Capital
FOOD STANDARDS AGENCY - Westminster,FOOD STANDARDS AGENCY - Westminster,2022-02-14,EXP - PURCHASE OF GOODS/SERVICES - OTHER - PROGRAMME EXPENDITURE,ANALYTICS UNIT,IPSOS MORI,1011718079,24290,Surveys to compare  IID rates during COVID-19 to those post COVID-19.,E1W 1YW,Admin
FOOD STANDARDS AGENCY - Westminster,FOOD STANDARDS AGENCY - Westminster,2022-02-14,EXP - PURCHASE OF GOODS/SERVICES - OTHER - PROGRAMME EXPENDITURE,ANALYTICS UNIT,IPSOS MORI,1011718079,21710,Surveys to compare  IID rates during COVID-19 to those post COVID-19. Additional 2 waves Add a line to PO11770006271  FS430584  Redacted under Section 40 FOI Act,E1W 1YW,Admin
FOOD STANDARDS AGENCY - Westminster,FOOD STANDARDS AGENCY - Westminster,2022-02-15,EXP - PURCHASE OF GOODS/SERVICES - OTHER - PROGRAMME EXPENDITURE,RISK ASSESSMENT - RESEARCH AND DEVELOPMENT,HALLMARK MEAT HYGIENE LTD,1011718103,22884,"A survey of antimicrobial resistant (AMR) E. coli, Campylobacter and Salmonella on chicken and turkey meat on retail sale in the UK (2022) Req Hannah Taylor FS430917",GL10 2BJ,Admin
FOOD STANDARDS AGENCY - Westminster,FOOD STANDARDS AGENCY - Westminster,2022-02-16,EXP - PURCHASE OF GOODS/SERVICES - OTHER - PROGRAMME EXPENDITURE,DIGITAL,FOUNDRY4 CONSULTING LTD,1011718112,55800,FS430928 FHRS API Discovery (BC928),E1 6JE,Admin
FOOD STANDARDS AGENCY - Westminster,FOOD STANDARDS AGENCY - Westminster,2022-02-16,EXP - PURCHASE OF GOODS/SERVICES - OTHER - PROGRAMME EXPENDITURE,DIGITAL,FOUNDRY4 CONSULTING LTD,1011718112,11160,UK VAT - UK VAT,E1 6JE,Admin
FOOD STANDARDS AGENCY - Westminster,FOOD STANDARDS AGENCY - Westminster,2022-02-16,EXP - PURCHASE OF GOODS/SERVICES - OTHER - PROGRAMME EXPENDITURE,DIGITAL,FOUNDRY4 CONSULTING LTD,1011718112,71675,FS430928 SOW003 - FSA Food Platforms Discovery (Build) (BC928),E1 6JE,Admin
FOOD STANDARDS AGENCY - Westminster,FOOD STANDARDS AGENCY - Westminster,2022-02-16,EXP - PURCHASE OF GOODS/SERVICES - OTHER - PROGRAMME EXPENDITURE,DIGITAL,FOUNDRY4 CONSULTING LTD,1011718112,14335,UK VAT - UK VAT,E1 6JE,Admin
FOOD STANDARDS AGENCY - Westminster,FOOD STANDARDS AGENCY - Westminster,2022-02-17,EXP - PURCHASE OF GOODS/SERVICES - OTHER - PROGRAMME EXPENDITURE,Surveillance,I10 LTD,1011718120,319,UK VAT - UK VAT,NG31 6JL,Admin
FOOD STANDARDS AGENCY - Westminster,FOOD STANDARDS AGENCY - Westminster,2022-02-17,EXP - PURCHASE OF GOODS/SERVICES - OTHER - PROGRAMME EXPENDITURE,Surveillance,I10 LTD,1011718120,1593,WP037 Augmented Reality Pilot Support (BC954),NG31 6JL,Admin
FOOD STANDARDS AGENCY - Westminster,FOOD STANDARDS AGENCY - Westminster,2022-02-17,EXP - PURCHASE OF GOODS/SERVICES - OTHER - PROGRAMME EXPENDITURE,Surveillance,I10 LTD,1011718120,58300,FSA728 WP44 Proof of Concept - Online Food Sale Risk (BC890),NG31 6JL,Admin
FOOD STANDARDS AGENCY - Westminster,FOOD STANDARDS AGENCY - Westminster,2022-02-17,EXP - PURCHASE OF GOODS/SERVICES - OTHER - PROGRAMME EXPENDITURE,Surveillance,I10 LTD,1011718120,11660,UK VAT - UK VAT,NG31 6JL,Admin
FOOD STANDARDS AGENCY - Westminster,FOOD STANDARDS AGENCY - Westminster,2022-02-17,EXP - PURCHASE OF GOODS/SERVICES - OTHER - PROGRAMME EXPENDITURE,DIGITAL,I10 LTD,1011718120,42394,FSA739 WP001 - Casework Implementation (BC976),NG31 6JL,Admin
FOOD STANDARDS AGENCY - Westminster,FOOD STANDARDS AGENCY - Westminster,2022-02-17,EXP - PURCHASE OF GOODS/SERVICES - OTHER - PROGRAMME EXPENDITURE,DIGITAL,I10 LTD,1011718120,8479,UK VAT - UK VAT,NG31 6JL,Admin
FOOD STANDARDS AGENCY - Westminster,FOOD STANDARDS AGENCY - Westminster,2022-02-17,EXP - PURCHASE OF GOODS/SERVICES - OTHER FACILTIES COSTS - SECURITY,"DATA, INFORMATION, GOVERNANCE AND SECURITY",I10 LTD,1011718120,6250,FSA739 WP003 Security Service (BC763),NG31 6JL,Admin
FOOD STANDARDS AGENCY - Westminster,FOOD STANDARDS AGENCY - Westminster,2022-02-17,EXP - PURCHASE OF GOODS/SERVICES - OTHER FACILTIES COSTS - SECURITY,"DATA, INFORMATION, GOVERNANCE AND SECURITY",I10 LTD,1011718120,1250,UK VAT - UK VAT,NG31 6JL,Admin
FOOD STANDARDS AGENCY - Westminster,FOOD STANDARDS AGENCY - Westminster,2022-02-17,EXP - PURCHASE OF GOODS/SERVICES - TELECOMS - TELEPHONE,IT SERVICE DELIVERY,EXPONENTIAL E LTD,1011718125,24,IT36 WAN Provision - Variation 42 extenstion to Contract,E1 8EU,Admin
FOOD STANDARDS AGENCY - Westminster,FOOD STANDARDS AGENCY - Westminster,2022-02-17,EXP - PURCHASE OF GOODS/SERVICES - TELECOMS - TELEPHONE,IT SERVICE DELIVERY,EXPONENTIAL E LTD,1011718125,24,IT36 WAN Provision - Variation 42 extenstion to Contract,E1 8EU,Admin
FOOD STANDARDS AGENCY - Westminster,FOOD STANDARDS AGENCY - Westminster,2022-02-17,EXP - PURCHASE OF GOODS/SERVICES - TELECOMS - TELEPHONE,IT SERVICE DELIVERY,EXPONENTIAL E LTD,1011718125,26,IT36 WAN Provision - Variation 42 extenstion to Contract,E1 8EU,Admin
FOOD STANDARDS AGENCY - Westminster,FOOD STANDARDS AGENCY - Westminster,2022-02-17,EXP - PURCHASE OF GOODS/SERVICES - TELECOMS - TELEPHONE,IT SERVICE DELIVERY,EXPONENTIAL E LTD,1011718125,57,IT36 WAN Provision - Variation 42 extenstion to Contract,E1 8EU,Admin
FOOD STANDARDS AGENCY - Westminster,FOOD STANDARDS AGENCY - Westminster,2022-02-17,EXP - PURCHASE OF GOODS/SERVICES - TELECOMS - TELEPHONE,IT SERVICE DELIVERY,EXPONENTIAL E LTD,1011718125,120,IT36 WAN Provision - Variation 42 extenstion to Contract,E1 8EU,Admin
FOOD STANDARDS AGENCY - Westminster,FOOD STANDARDS AGENCY - Westminster,2022-02-17,EXP - PURCHASE OF GOODS/SERVICES - TELECOMS - TELEPHONE,IT SERVICE DELIVERY,EXPONENTIAL E LTD,1011718125,275,IT36 WAN Provision - Variation 42 extenstion to Contract,E1 8EU,Admin
FOOD STANDARDS AGENCY - Westminster,FOOD STANDARDS AGENCY - Westminster,2022-02-17,EXP - PURCHASE OF GOODS/SERVICES - TELECOMS - TELEPHONE,IT SERVICE DELIVERY,EXPONENTIAL E LTD,1011718125,465,IT36 WAN Provision - Variation 42 extenstion to Contract,E1 8EU,Admin
FOOD STANDARDS AGENCY - Westminster,FOOD STANDARDS AGENCY - Westminster,2022-02-17,EXP - PURCHASE OF GOODS/SERVICES - TELECOMS - TELEPHONE,IT SERVICE DELIVERY,EXPONENTIAL E LTD,1011718125,522,IT36 WAN Provision - Variation 42 extenstion to Contract,E1 8EU,Admin
FOOD STANDARDS AGENCY - Westminster,FOOD STANDARDS AGENCY - Westminster,2022-02-17,EXP - PURCHASE OF GOODS/SERVICES - TELECOMS - TELEPHONE,IT SERVICE DELIVERY,EXPONENTIAL E LTD,1011718125,733,IT36 WAN Provision - Variation 42 extenstion to Contract,E1 8EU,Admin
FOOD STANDARDS AGENCY - Westminster,FOOD STANDARDS AGENCY - Westminster,2022-02-17,EXP - PURCHASE OF GOODS/SERVICES - TELECOMS - TELEPHONE,IT SERVICE DELIVERY,EXPONENTIAL E LTD,1011718125,8395,IT36 WAN Provision - Variation 42 extenstion to Contract,E1 8EU,Admin
FOOD STANDARDS AGENCY - Westminster,FOOD STANDARDS AGENCY - Westminster,2022-02-17,EXP - PURCHASE OF GOODS/SERVICES - TELECOMS - TELEPHONE,IT SERVICE DELIVERY,EXPONENTIAL E LTD,1011718125,41850,IT36 WAN Provision - Variation 42 extenstion to Contract,E1 8EU,Admin
FOOD STANDARDS AGENCY - Westminster,FOOD STANDARDS AGENCY - Westminster,2022-02-17,EXP - PURCHASE OF GOODS/SERVICES - TELECOMS - TELEPHONE,IT SERVICE DELIVERY,EXPONENTIAL E LTD,1011718125,5,UK VAT - UK VAT,E1 8EU,Admin
FOOD STANDARDS AGENCY - Westminster,FOOD STANDARDS AGENCY - Westminster,2022-02-17,EXP - PURCHASE OF GOODS/SERVICES - TELECOMS - TELEPHONE,IT SERVICE DELIVERY,EXPONENTIAL E LTD,1011718125,5,UK VAT - UK VAT,E1 8EU,Admin
FOOD STANDARDS AGENCY - Westminster,FOOD STANDARDS AGENCY - Westminster,2022-02-17,EXP - PURCHASE OF GOODS/SERVICES - TELECOMS - TELEPHONE,IT SERVICE DELIVERY,EXPONENTIAL E LTD,1011718125,5,UK VAT - UK VAT,E1 8EU,Admin
FOOD STANDARDS AGENCY - Westminster,FOOD STANDARDS AGENCY - Westminster,2022-02-17,EXP - PURCHASE OF GOODS/SERVICES - TELECOMS - TELEPHONE,IT SERVICE DELIVERY,EXPONENTIAL E LTD,1011718125,11,UK VAT - UK VAT,E1 8EU,Admin
FOOD STANDARDS AGENCY - Westminster,FOOD STANDARDS AGENCY - Westminster,2022-02-17,EXP - PURCHASE OF GOODS/SERVICES - TELECOMS - TELEPHONE,IT SERVICE DELIVERY,EXPONENTIAL E LTD,1011718125,24,UK VAT - UK VAT,E1 8EU,Admin
FOOD STANDARDS AGENCY - Westminster,FOOD STANDARDS AGENCY - Westminster,2022-02-17,EXP - PURCHASE OF GOODS/SERVICES - TELECOMS - TELEPHONE,IT SERVICE DELIVERY,EXPONENTIAL E LTD,1011718125,55,UK VAT - UK VAT,E1 8EU,Admin
FOOD STANDARDS AGENCY - Westminster,FOOD STANDARDS AGENCY - Westminster,2022-02-17,EXP - PURCHASE OF GOODS/SERVICES - TELECOMS - TELEPHONE,IT SERVICE DELIVERY,EXPONENTIAL E LTD,1011718125,93,UK VAT - UK VAT,E1 8EU,Admin
FOOD STANDARDS AGENCY - Westminster,FOOD STANDARDS AGENCY - Westminster,2022-02-17,EXP - PURCHASE OF GOODS/SERVICES - TELECOMS - TELEPHONE,IT SERVICE DELIVERY,EXPONENTIAL E LTD,1011718125,104,UK VAT - UK VAT,E1 8EU,Admin
FOOD STANDARDS AGENCY - Westminster,FOOD STANDARDS AGENCY - Westminster,2022-02-17,EXP - PURCHASE OF GOODS/SERVICES - TELECOMS - TELEPHONE,IT SERVICE DELIVERY,EXPONENTIAL E LTD,1011718125,147,UK VAT - UK VAT,E1 8EU,Admin
FOOD STANDARDS AGENCY - Westminster,FOOD STANDARDS AGENCY - Westminster,2022-02-17,EXP - PURCHASE OF GOODS/SERVICES - TELECOMS - TELEPHONE,IT SERVICE DELIVERY,EXPONENTIAL E LTD,1011718125,1679,UK VAT - UK VAT,E1 8EU,Admin
FOOD STANDARDS AGENCY - Westminster,FOOD STANDARDS AGENCY - Westminster,2022-02-17,EXP - PURCHASE OF GOODS/SERVICES - TELECOMS - TELEPHONE,IT SERVICE DELIVERY,EXPONENTIAL E LTD,1011718125,8370,UK VAT - UK VAT,E1 8EU,Admin
FOOD STANDARDS AGENCY - Westminster,FOOD STANDARDS AGENCY - Westminster,2022-02-17,EXP - PURCHASE OF GOODS/SERVICES - OTHER - PROGRAMME EXPENDITURE,RISK ASSESSMENT - RESEARCH AND DEVELOPMENT,HAMPSHIRE SCIENTIFIC SERVICE HAMPSHIRE COUNTY COUNCIL,1011718122,51060,Retail food surveillance programme (FS430587B) - replacement line - Redacted under Section 40 FOI Act,SO23 8UB,Admin
FOOD STANDARDS AGENCY - Westminster,FOOD STANDARDS AGENCY - Westminster,2022-02-17,EXP - PURCHASE OF GOODS/SERVICES - OTHER - PROGRAMME EXPENDITURE,RISK ASSESSMENT - RESEARCH AND DEVELOPMENT,FERA SCIENCE LIMITED,1011718127,29086,New line to PO11770007193 correcting coding error FS616030National Reference Laboratory for Food Contaminants,YO41 1LZ,Admin
FOOD STANDARDS AGENCY - Westminster,FOOD STANDARDS AGENCY - Westminster,2022-02-18,EXP - PURCHASE OF GOODS/SERVICES - SHARED SERV OUTSRCG- CIVIL SERV PENSION ADMIN,FINANCE,LONDON PENSIONS FUND AUTHORITY,1011718136,125000,SOP1-875646-173305-174097-FEB 22 LPFA ERS,EC3N 4LP,Admin
FOOD STANDARDS AGENCY - Westminster,FOOD STANDARDS AGENCY - Westminster,2022-02-18,EXP - CURRENT GRANTS TO LOCAL GOVERNMENT - NNDR,EU Transition - Imports Delivery,CITY OF LONDON CORPORATION,1011718142,105477,City of London Corporation FSA Imports Delivery General Grant Funding Redacted under Section 40 FOI Act,EC2P 2EJ,Admin
FOOD STANDARDS AGENCY - Westminster,FOOD STANDARDS AGENCY - Westminster,2022-02-18,EXP - PURCHASE OF GOODS/SERVICES - TELECOMS - TELEPHONE,IT SERVICE DELIVERY,LITTLE FISH UK LTD,1011718150,14209,IT1 Networks Design and Delivery (LAN) (Aug 21-Mar 22),NG1 1LS,Admin
FOOD STANDARDS AGENCY - Westminster,FOOD STANDARDS AGENCY - Westminster,2022-02-18,EXP - PURCHASE OF GOODS/SERV - SUPPORT - IT SUPPORT SERVICES,IT SERVICE DELIVERY,LITTLE FISH UK LTD,1011718150,27530,FS430637 Service Desk 01.09.21 - 31.08.22 (BC695),NG1 1LS,Admin
FOOD STANDARDS AGENCY - Westminster,FOOD STANDARDS AGENCY - Westminster,2022-02-18,EXP - PURCHASE OF GOODS/SERV - SUPPORT - IT SUPPORT SERVICES,IT SERVICE DELIVERY,LITTLE FISH UK LTD,1011718150,5506,UK VAT - UK VAT,NG1 1LS,Admin
FOOD STANDARDS AGENCY - Westminster,FOOD STANDARDS AGENCY - Westminster,2022-02-18,EXP - PURCHASE OF GOODS/SERV - SUPPORT - IT SUPPORT SERVICES,IT SERVICE DELIVERY,LITTLE FISH UK LTD,1011718150,27895,FS430633 Endpoint Management (EPM) (BC695),NG1 1LS,Admin
FOOD STANDARDS AGENCY - Westminster,FOOD STANDARDS AGENCY - Westminster,2022-02-18,EXP - PURCHASE OF GOODS/SERV - SUPPORT - IT SUPPORT SERVICES,IT SERVICE DELIVERY,LITTLE FISH UK LTD,1011718150,5579,UK VAT - UK VAT,NG1 1LS,Admin
FOOD STANDARDS AGENCY - Westminster,FOOD STANDARDS AGENCY - Westminster,2022-02-18,EXP - PURCHASE OF GOODS/SERVICES - ACCOMM & BLDNG MGMT - SHARED SITE RECHARGE,SECURITY & ESTATES,NATIONAL LOTTERY COMMUNITY FUND,1011718146,6809,Rent Charges Apex House 25/12/21 - 31/03/22,B15 1TR,Admin
FOOD STANDARDS AGENCY - Westminster,FOOD STANDARDS AGENCY - Westminster,2022-02-18,EXP - PURCHASE OF GOODS/SERVICES - ACCOMM & BLDNG MGMT - SHARED SITE RECHARGE,SECURITY & ESTATES,NATIONAL LOTTERY COMMUNITY FUND,1011718146,1775,SOP1-875601-160206-174097-FACILITIES SUPPORT,B15 1TR,Admin
FOOD STANDARDS AGENCY - Westminster,FOOD STANDARDS AGENCY - Westminster,2022-02-18,EXP - PURCHASE OF GOODS/SERVICES - ACCOMM & BLDNG MGMT - SHARED SITE RECHARGE,SECURITY & ESTATES,NATIONAL LOTTERY COMMUNITY FUND,1011718146,34044,SOP1-875602-160206-174097-RENT CHARGE APEX HOUSE,B15 1TR,Admin
FOOD STANDARDS AGENCY - Westminster,FOOD STANDARDS AGENCY - Westminster,2022-02-18,EXP - AMORTISATION - INTANGIBLE ASSETS,IT SERVICE DELIVERY,CHARTERHOUSE,1011718141,2666,FS910125 Microsoft Teams Meeting Rooms Hardware (BC879),EC2A 3SB,Capital
FOOD STANDARDS AGENCY - Westminster,FOOD STANDARDS AGENCY - Westminster,2022-02-18,EXP - AMORTISATION - INTANGIBLE ASSETS,IT SERVICE DELIVERY,CHARTERHOUSE,1011718141,3099,FS910125 Microsoft Teams Meeting Rooms Hardware (BC879),EC2A 3SB,Capital
FOOD STANDARDS AGENCY - Westminster,FOOD STANDARDS AGENCY - Westminster,2022-02-18,EXP - AMORTISATION - INTANGIBLE ASSETS,IT SERVICE DELIVERY,CHARTERHOUSE,1011718141,7370,FS910125 Microsoft Teams Meeting Rooms Hardware (BC879),EC2A 3SB,Capital
FOOD STANDARDS AGENCY - Westminster,FOOD STANDARDS AGENCY - Westminster,2022-02-18,EXP - AMORTISATION - INTANGIBLE ASSETS,IT SERVICE DELIVERY,CHARTERHOUSE,1011718141,7370,FS910125 Microsoft Teams Meeting Rooms Hardware (BC879),EC2A 3SB,Capital
FOOD STANDARDS AGENCY - Westminster,FOOD STANDARDS AGENCY - Westminster,2022-02-18,EXP - AMORTISATION - INTANGIBLE ASSETS,IT SERVICE DELIVERY,CHARTERHOUSE,1011718141,9296,FS910125 Microsoft Teams Meeting Rooms Hardware (BC879),EC2A 3SB,Capital
FOOD STANDARDS AGENCY - Westminster,FOOD STANDARDS AGENCY - Westminster,2022-02-18,EXP - AMORTISATION - INTANGIBLE ASSETS,IT SERVICE DELIVERY,CHARTERHOUSE,1011718141,533,UK VAT - UK VAT,EC2A 3SB,Capital
FOOD STANDARDS AGENCY - Westminster,FOOD STANDARDS AGENCY - Westminster,2022-02-18,EXP - AMORTISATION - INTANGIBLE ASSETS,IT SERVICE DELIVERY,CHARTERHOUSE,1011718141,620,UK VAT - UK VAT,EC2A 3SB,Capital
FOOD STANDARDS AGENCY - Westminster,FOOD STANDARDS AGENCY - Westminster,2022-02-18,EXP - AMORTISATION - INTANGIBLE ASSETS,IT SERVICE DELIVERY,CHARTERHOUSE,1011718141,1474,UK VAT - UK VAT,EC2A 3SB,Capital
FOOD STANDARDS AGENCY - Westminster,FOOD STANDARDS AGENCY - Westminster,2022-02-18,EXP - AMORTISATION - INTANGIBLE ASSETS,IT SERVICE DELIVERY,CHARTERHOUSE,1011718141,1474,UK VAT - UK VAT,EC2A 3SB,Capital
FOOD STANDARDS AGENCY - Westminster,FOOD STANDARDS AGENCY - Westminster,2022-02-18,EXP - AMORTISATION - INTANGIBLE ASSETS,IT SERVICE DELIVERY,CHARTERHOUSE,1011718141,1859,UK VAT - UK VAT,EC2A 3SB,Capital
FOOD STANDARDS AGENCY - Westminster,FOOD STANDARDS AGENCY - Westminster,2022-02-18,EXP - AMORTISATION - INTANGIBLE ASSETS,IT SERVICE DELIVERY,CCS MEDIA LTD,1011718137,2080,NFC136 Hardware Aggregation Tech Refresh Quote 6020164 (BC859),S40 2EX,Capital
FOOD STANDARDS AGENCY - Westminster,FOOD STANDARDS AGENCY - Westminster,2022-02-18,EXP - AMORTISATION - INTANGIBLE ASSETS,IT SERVICE DELIVERY,CCS MEDIA LTD,1011718137,2324,NFC136 Hardware Aggregation Tech Refresh Quote 6020164 (BC859),S40 2EX,Capital
FOOD STANDARDS AGENCY - Westminster,FOOD STANDARDS AGENCY - Westminster,2022-02-18,EXP - AMORTISATION - INTANGIBLE ASSETS,IT SERVICE DELIVERY,CCS MEDIA LTD,1011718137,17800,NFC136 Hardware Aggregation Tech Refresh Quote 6020164 (BC859),S40 2EX,Capital
FOOD STANDARDS AGENCY - Westminster,FOOD STANDARDS AGENCY - Westminster,2022-02-18,EXP - AMORTISATION - INTANGIBLE ASSETS,IT SERVICE DELIVERY,CCS MEDIA LTD,1011718137,416,UK VAT - UK VAT,S40 2EX,Capital
FOOD STANDARDS AGENCY - Westminster,FOOD STANDARDS AGENCY - Westminster,2022-02-18,EXP - AMORTISATION - INTANGIBLE ASSETS,IT SERVICE DELIVERY,CCS MEDIA LTD,1011718137,465,UK VAT - UK VAT,S40 2EX,Capital
FOOD STANDARDS AGENCY - Westminster,FOOD STANDARDS AGENCY - Westminster,2022-02-18,EXP - AMORTISATION - INTANGIBLE ASSETS,IT SERVICE DELIVERY,CCS MEDIA LTD,1011718137,3560,UK VAT - UK VAT,S40 2EX,Capital
FOOD STANDARDS AGENCY - Westminster,FOOD STANDARDS AGENCY - Westminster,2022-02-21,EXP - PURCHASE OF GOODS/SERVICES - OTHER - PROGRAMME EXPENDITURE,REGULATORY DELIVERY,C E F A S,2011700199,12180,Phytoplankton analysis for shellfish official controls 2021-22,NR33 0HT,Admin
FOOD STANDARDS AGENCY - Westminster,FOOD STANDARDS AGENCY - Westminster,2022-02-21,EXP - PURCHASE OF GOODS/SERVICES - OTHER - PROGRAMME EXPENDITURE,REGULATORY DELIVERY,C E F A S,2011700199,22539,Classification management - Shellfish official controls,NR33 0HT,Admin
FOOD STANDARDS AGENCY - Westminster,FOOD STANDARDS AGENCY - Westminster,2022-02-21,EXP - PURCHASE OF GOODS/SERVICES - OTHER - PROGRAMME EXPENDITURE,REGULATORY DELIVERY,C E F A S,2011700199,36961,Biotoxin official controls - Shellfish,NR33 0HT,Admin
FOOD STANDARDS AGENCY - Westminster,FOOD STANDARDS AGENCY - Westminster,2022-02-21,EXP - PURCHASE OF GOODS/SERVICES - OTHER - LAUNDRY,OPERATIONAL DELIVERY,ELIS UK LTD,1011718156,-19,Laundry & Linen call off agreement - RM1031 - Redacted under Section 40 FOI Act,RG24 8NE,Admin
FOOD STANDARDS AGENCY - Westminster,FOOD STANDARDS AGENCY - Westminster,2022-02-21,EXP - PURCHASE OF GOODS/SERVICES - OTHER - LAUNDRY,OPERATIONAL DELIVERY,ELIS UK LTD,1011718156,3010,Laundry & Linen call off agreement - RM1031 - Redacted under Section 40 FOI Act,RG24 8NE,Admin
FOOD STANDARDS AGENCY - Westminster,FOOD STANDARDS AGENCY - Westminster,2022-02-21,EXP - PURCHASE OF GOODS/SERVICES - OTHER - LAUNDRY,OPERATIONAL DELIVERY,ELIS UK LTD,1011718156,3033,Laundry & Linen call off agreement - RM1031 - Redacted under Section 40 FOI Act,RG24 8NE,Admin
FOOD STANDARDS AGENCY - Westminster,FOOD STANDARDS AGENCY - Westminster,2022-02-21,EXP - PURCHASE OF GOODS/SERVICES - OTHER - LAUNDRY,OPERATIONAL DELIVERY,ELIS UK LTD,1011718156,12758,Laundry & Linen call off agreement - RM1031 - Redacted under Section 40 FOI Act,RG24 8NE,Admin
FOOD STANDARDS AGENCY - Westminster,FOOD STANDARDS AGENCY - Westminster,2022-02-21,EXP - PURCHASE OF GOODS/SERVICES - OTHER - LAUNDRY,OPERATIONAL DELIVERY,ELIS UK LTD,1011718156,14491,Laundry & Linen call off agreement - RM1031 - Redacted under Section 40 FOI Act,RG24 8NE,Admin
FOOD STANDARDS AGENCY - Westminster,FOOD STANDARDS AGENCY - Westminster,2022-02-21,EXP - PURCHASE OF GOODS/SERVICES - OTHER - LAUNDRY,OPERATIONAL DELIVERY,ELIS UK LTD,1011718156,14772,Laundry & Linen call off agreement - RM1031 - Redacted under Section 40 FOI Act,RG24 8NE,Admin
FOOD STANDARDS AGENCY - Westminster,FOOD STANDARDS AGENCY - Westminster,2022-02-21,EXP - CURRENT GRANTS TO LOCAL GOVERNMENT - NNDR,EU Transition - Imports Delivery,LONDON BOROUGH OF HILLINGDON,1011718154,47300,London Borough of Hillingdon - FSA Imports Delivery General Grant Funding - REQ Redacted under Section 40 FOI Act,UB8 1UW,Admin
FOOD STANDARDS AGENCY - Westminster,FOOD STANDARDS AGENCY - Westminster,2022-02-21,EXP - PURCHASE OF GOODS/SERVICES - OTHER ICT COSTS,"DATA, INFORMATION, GOVERNANCE AND SECURITY",I10 LTD,1011718155,30000,FSA728 WP042 SharePoint Architecture  Wisdom Migration Part B (BC910),NG31 6JL,Admin
FOOD STANDARDS AGENCY - Westminster,FOOD STANDARDS AGENCY - Westminster,2022-02-21,EXP - PURCHASE OF GOODS/SERVICES - OTHER ICT COSTS,"DATA, INFORMATION, GOVERNANCE AND SECURITY",I10 LTD,1011718155,6000,UK VAT - UK VAT,NG31 6JL,Admin
FOOD STANDARDS AGENCY - Westminster,FOOD STANDARDS AGENCY - Westminster,2022-02-22,EXP - PURCHASE OF GOODS/SERVICES - OTHER - PROGRAMME EXPENDITURE,RISK ASSESSMENT - RESEARCH AND DEVELOPMENT,BRIGHT HARBOUR RESEARCH LTD,1011718167,51072,FS430875 Understanding the wider consumer interest in food - Redacted under Section 40 FOI Act,CT18 7TQ,Admin
FOOD STANDARDS AGENCY - Westminster,FOOD STANDARDS AGENCY - Westminster,2022-02-23,EXP - PURCHASE OF GOODS/SERVICES - OTHER - PROGRAMME EXPENDITURE,FOOD INCIDENTS AND RESILIENCE PROG(PROG),WORLD HEALTH ORGANIZATION,20000251,188188,SOP5-WQ878543-173305-174097-FSA-Payment Into Foreign BankINFORSAN 22 - 23,SWITZERLAND,Admin
FOOD STANDARDS AGENCY - Westminster,FOOD STANDARDS AGENCY - Westminster,2022-02-23,EXP - PURCHASE OF GOODS/SERVICES - OTHER - PROGRAMME EXPENDITURE,FOOD INCIDENTS AND RESILIENCE PROG(PROG),WORLD HEALTH ORGANIZATION,20000250,78394,SOP5-WQ878535-173305-174097-FSA-Payment Into Foreign BankINFOSAN NOV 21 - MAR 22,SWITZERLAND,Admin
FOOD STANDARDS AGENCY - Westminster,FOOD STANDARDS AGENCY - Westminster,2022-02-23,EXP - PURCHASE OF GOODS/SERVICES - OTHER - PROGRAMME EXPENDITURE,RISK ASSESSMENT - RESEARCH AND DEVELOPMENT,UNIVERSITY OF NEWCASTLE UPON TYNE,1011718175,11715,An assessment of the potential impacts on food safety and availability in the UK resulting from labour shortages within the food system. - Redacted under Section 40 FOI Act,NE1 7RU,Admin
FOOD STANDARDS AGENCY - Westminster,FOOD STANDARDS AGENCY - Westminster,2022-02-23,EXP - PURCHASE OF GOODS/SERVICES - OTHER - PROGRAMME EXPENDITURE,RISK ASSESSMENT - RESEARCH AND DEVELOPMENT,UNIVERSITY OF NEWCASTLE UPON TYNE,1011718175,16564,An assessment of the potential impacts on food safety and availability in the UK resulting from labour shortages within the food system. - Marfot Miah,NE1 7RU,Admin
FOOD STANDARDS AGENCY - Westminster,FOOD STANDARDS AGENCY - Westminster,2022-02-23,EXP - PURCHASE OF GOODS/SERVICES - OTHER - PROGRAMME EXPENDITURE,ACHIEVING BUSINESS COMPLIANCE,"LANCASHIRE COUNTY COUNCIL, TRADING STANDARDS",1011718173,3798,Food Standards Review - LA pilot work - Add line to PO11770007269 - Redacted under Section 40 FOI Act,PR1 0LD,Admin
FOOD STANDARDS AGENCY - Westminster,FOOD STANDARDS AGENCY - Westminster,2022-02-23,EXP - PURCHASE OF GOODS/SERVICES - OTHER - PROGRAMME EXPENDITURE,REGULATORY DELIVERY,"LANCASHIRE COUNTY COUNCIL, TRADING STANDARDS",1011718173,19750,Lancashire County Council Food Standards Review - Agreed by FSA Board Redacted under Section 40 FOI Act,PR1 0LD,Admin
FOOD STANDARDS AGENCY - Westminster,FOOD STANDARDS AGENCY - Westminster,2022-02-23,EXP - PURCHASE OF GOODS/SERVICES - OTHER - PROGRAMME EXPENDITURE,RISK ASSESSMENT - RESEARCH AND DEVELOPMENT,BRIGHT HARBOUR RESEARCH LTD,1011718174,21908,FS430875 Understanding the wider consumer interest in food - Redacted under Section 40 FOI Act,CT18 7TQ,Admin
FOOD STANDARDS AGENCY - Westminster,FOOD STANDARDS AGENCY - Westminster,2022-02-24,EXP - PURCHASE OF GOODS/SERVICES - SHARED SERV OUTSRCG- CIVIL SERV PENSION ADMIN,IT STRATEGY & DEVELOPMENT,METHODS BUSINESS AND DIGITAL TECHNOLOGY LTD,1011718182,10850,FS430634 WP 108 365 Improvement Work (BC959),EC1A 4EN,Admin
FOOD STANDARDS AGENCY - Westminster,FOOD STANDARDS AGENCY - Westminster,2022-02-24,EXP - PURCHASE OF GOODS/SERVICES - SHARED SERV OUTSRCG- CIVIL SERV PENSION ADMIN,IT STRATEGY & DEVELOPMENT,METHODS BUSINESS AND DIGITAL TECHNOLOGY LTD,1011718182,2170,UK VAT - UK VAT,EC1A 4EN,Admin
FOOD STANDARDS AGENCY - Westminster,FOOD STANDARDS AGENCY - Westminster,2022-02-24,EXP - PURCHASE OF GOODS/SERVICES - OTHER - PROGRAMME EXPENDITURE,IT STRATEGY & DEVELOPMENT,METHODS BUSINESS AND DIGITAL TECHNOLOGY LTD,1011718182,13700,FS430635 WP123  2012 End of Life Design (BC791),EC1A 4EN,Admin
FOOD STANDARDS AGENCY - Westminster,FOOD STANDARDS AGENCY - Westminster,2022-02-24,EXP - PURCHASE OF GOODS/SERVICES - OTHER - PROGRAMME EXPENDITURE,IT STRATEGY & DEVELOPMENT,METHODS BUSINESS AND DIGITAL TECHNOLOGY LTD,1011718182,2740,UK VAT - UK VAT,EC1A 4EN,Admin
FOOD STANDARDS AGENCY - Westminster,FOOD STANDARDS AGENCY - Westminster,2022-02-24,EXP - PURCHASE OF GOODS/SERVICES - OTHER - PROGRAMME EXPENDITURE,IT STRATEGY & DEVELOPMENT,METHODS BUSINESS AND DIGITAL TECHNOLOGY LTD,1011718182,18500,FS430634  WP109 Zero Trust Strategy Discovery (BC961),EC1A 4EN,Admin
FOOD STANDARDS AGENCY - Westminster,FOOD STANDARDS AGENCY - Westminster,2022-02-24,EXP - PURCHASE OF GOODS/SERVICES - OTHER - PROGRAMME EXPENDITURE,IT STRATEGY & DEVELOPMENT,METHODS BUSINESS AND DIGITAL TECHNOLOGY LTD,1011718182,3700,UK VAT - UK VAT,EC1A 4EN,Admin
FOOD STANDARDS AGENCY - Westminster,FOOD STANDARDS AGENCY - Westminster,2022-02-24,EXP - PURCHASE OF GOODS/SERVICES - OTHER ICT COSTS - COMPUTER SOFTWARE,IT STRATEGY & DEVELOPMENT,METHODS BUSINESS AND DIGITAL TECHNOLOGY LTD,1011718182,14045,FS430634 WP120 Exchange  365 only Discovery (BC959),EC1A 4EN,Admin
FOOD STANDARDS AGENCY - Westminster,FOOD STANDARDS AGENCY - Westminster,2022-02-24,EXP - PURCHASE OF GOODS/SERVICES - OTHER ICT COSTS - COMPUTER SOFTWARE,IT STRATEGY & DEVELOPMENT,METHODS BUSINESS AND DIGITAL TECHNOLOGY LTD,1011718182,2809,UK VAT - UK VAT,EC1A 4EN,Admin
FOOD STANDARDS AGENCY - Westminster,FOOD STANDARDS AGENCY - Westminster,2022-02-24,EXP - PURCHASE OF GOODS/SERVICES - OTHER - PROGRAMME EXPENDITURE,RISK ASSESSMENT - RESEARCH AND DEVELOPMENT,BRITAIN THINKS,1011718180,55482,"Information needs for FHS consumers when eating out, and information provision of allergen information in businesses selling non pre-packed food - Redacted under Section 40 FOI Act",WC2R 1LA,Admin
FOOD STANDARDS AGENCY - Westminster,FOOD STANDARDS AGENCY - Westminster,2022-02-25,EXP - SHORT-TERM CONTRACT & AGENCY STAFF - FULL COST - CONTRACT OV COSTS,OPERATIONAL DELIVERY,EVILLE & JONES GB LTD,1011718200,141000,SOP1-877908-173305-174097-VAR1112FEB22,LS15 8ZB,Admin
FOOD STANDARDS AGENCY - Westminster,FOOD STANDARDS AGENCY - Westminster,2022-02-25,EXP - SHORT-TERM CONTRACT & AGENCY STAFF - FULL COST - CONTRACT OV COSTS,OPERATIONAL DELIVERY,EVILLE & JONES GB LTD,1011718200,28200,VARAITIONS 11 & 12 Feb 22,LS15 8ZB,Admin
FOOD STANDARDS AGENCY - Westminster,FOOD STANDARDS AGENCY - Westminster,2022-02-28,EXP - PURCHASE OF GOODS/SERVICES - OTHER - PROGRAMME EXPENDITURE,RISK ASSESSMENT - RESEARCH AND DEVELOPMENT,UK HEALTH SECURITY AGENCY,2011700202,45816,"Survey of Salmonella, E. coli and E. coli and antimicrobial resistance (AMR) Redacted under Section 40 FOI Act. FS430677",SP4 0JG,Admin
